bitfinex-derivatives/quotes_BTCF0:USTF0_20260107
["timestamp","ask_amount","ask_price","bid_price","bid_amount"]
[1767827362332,0.13361228,91140.0,91129.0,0.010983]
[1767827365633,0.13361228,91140.0,91123.0,0.01659988]
[1767827366326,0.13361228,91140.0,91128.0,0.010983]
[1767827367330,0.09336,91149.0,91130.0,0.1080716]
[1767827367528,0.09336,91148.0,91140.0,0.010981]
[1767827367720,0.01811435,91151.0,91140.0,0.010981]
[1767827367920,0.13361228,91150.0,91140.0,0.010981]
[1767827368535,0.15172663,91150.0,91140.0,0.010981]
[1767827368734,0.15172663,91150.0,91137.0,0.010982]
[1767827369233,0.15172663,91150.0,91124.0,0.010983]
[1767827369234,0.09336,91153.0,91133.0,0.01659988]
[1767827369433,0.09336,91153.0,91143.0,0.010981]
[1767827369628,0.09336,91153.0,91140.0,0.010981]
[1767827369835,0.09336,91153.0,91142.0,0.010981]
[1767827370434,0.19276928,91158.0,91138.0,0.1080716]
[1767827370629,0.21088363,91158.0,91145.0,0.010981]
[1767827370832,0.01811435,91156.0,91138.0,0.09147172]
[1767827371039,0.01811435,91154.0,91134.0,0.01659988]
[1767827371241,0.01811435,91154.0,91134.0,0.1080716]
[1767827371930,0.0161701,91145.0,91127.0,0.12]
[1767827372129,0.0161701,91145.0,91128.0,0.09336]
[1767827373138,0.09764086,91146.0,91135.0,0.010982]
[1767827373831,0.0161701,91148.0,91137.0,0.010982]
[1767827374237,0.0161701,91148.0,91139.0,0.010981]
[1767827374835,0.13361228,91150.0,91139.0,0.010981]
[1767827375138,0.0161701,91155.0,91141.0,0.010981]
[1767827375325,0.11381096,91154.0,91141.0,0.010981]
[1767827375528,0.0161701,91153.0,91141.0,0.010981]
[1767827375926,0.0161701,91153.0,91135.0,0.010982]
[1767827376126,0.0161701,91157.0,91136.0,0.1122177]
[1767827376530,0.0161701,91155.0,91136.0,0.09542961]
[1767827377341,0.0161701,91155.0,91141.0,0.010981]
[1767827378035,0.0161701,91155.0,91136.0,0.09542961]
[1767827378240,0.0161701,91155.0,91142.0,0.010981]
[1767827378633,0.0161701,91155.0,91136.0,0.09542961]
[1767827378833,0.0161701,91155.0,91141.0,0.010981]
[1767827379743,0.0161701,91155.0,91142.0,0.010981]
[1767827380240,0.0161701,91155.0,91143.0,0.010981]
[1767827381640,0.0161701,91155.0,91139.0,0.010981]
[1767827381837,0.0161701,91154.0,91139.0,0.010981]
[1767827382037,0.0161701,91154.0,91140.0,0.010981]
[1767827382545,0.11381096,91154.0,91140.0,0.010981]
[1767827382739,0.0161701,91145.0,91132.0,0.010982]
[1767827383042,0.0161701,91144.0,91131.0,0.010982]
[1767827383241,0.0161701,91144.0,91113.0,0.010984]
[1767827383242,0.09764086,91109.0,91085.0,0.03189268]
[1767827383429,0.09764086,91109.0,91082.0,0.13724168]
[1767827383430,0.13361228,91095.0,91079.0,0.09626065]
[1767827383633,0.09336,91094.0,91079.0,0.09626065]
[1767827383835,0.09336,91093.0,91079.0,0.11304874]
[1767827384244,0.09336,91093.0,91081.0,0.09542961]
[1767827384444,0.09336,91093.0,91082.0,0.10641761]
[1767827384644,0.09336,91093.0,91082.0,0.09542961]
[1767827385248,0.09336,91093.0,91079.0,0.00083104]
[1767827385443,0.010987,91092.0,91079.0,0.00083104]
[1767827386038,0.15379286,91093.0,91079.0,0.00083104]
[1767827386439,0.16477986,91093.0,91079.0,0.00083104]
[1767827387845,0.15379286,91093.0,91079.0,0.00083104]
[1767827388044,0.010988,91087.0,91079.0,0.00083104]
[1767827388246,0.010988,91085.0,91076.0,0.09542961]
[1767827388546,0.010988,91085.0,91074.0,0.01678809]
[1767827388852,0.010988,91088.0,91074.0,0.01678809]
[1767827389042,0.010989,91077.0,91055.0,0.01678809]
[1767827389242,0.01005833,91073.0,91054.0,0.04914598]
[1767827389449,0.09336,91072.0,91054.0,0.04914598]
[1767827389649,0.09336,91072.0,91054.0,0.03815398]
[1767827389650,0.20105919,91072.0,91054.0,0.03815398]
[1767827389949,0.01099,91068.0,91054.0,0.03815398]
[1767827390149,0.10769919,91071.0,91049.0,0.010992]
[1767827390544,0.10769919,91071.0,91051.0,0.010992]
[1767827391749,0.10769919,91071.0,91054.0,0.010992]
[1767827391944,0.09336,91070.0,91054.0,0.010992]
[1767827392248,0.10769919,91071.0,91054.0,0.010992]
[1767827392453,0.09764086,91071.0,91054.0,0.010992]
[1767827392655,0.09336,91070.0,91054.0,0.010992]
[1767827393040,0.09336,91070.0,91050.0,0.02778009]
[1767827393254,0.10435,91070.0,91050.0,0.010992]
[1767827394164,0.12209294,91067.0,91046.0,0.02778109]
[1767827394350,0.12209294,91067.0,91048.0,0.010992]
[1767827398458,0.12209294,91067.0,91050.0,0.010992]
[1767827399259,0.02373454,91065.0,91047.0,0.010992]
[1767827399461,0.01274454,91059.0,91044.0,0.010993]
[1767827399653,0.0934,91058.0,91044.0,0.010993]
[1767827400253,0.010991,91057.0,91038.0,0.01678809]
[1767827400454,0.010991,91057.0,91041.0,0.010993]
[1767827400953,0.00013513,91056.0,91041.0,0.010993]
[1767827401461,0.00013513,91056.0,91037.0,0.09542961]
[1767827401462,0.00013513,91056.0,91038.0,0.01678809]
[1767827401762,0.00013513,91056.0,91039.0,0.01678809]
[1767827401961,0.00013513,91056.0,91038.0,0.09542961]
[1767827402144,0.01205682,91067.0,91052.0,0.010992]
[1767827402350,0.0934,91066.0,91049.0,0.01878069]
[1767827402554,0.010991,91063.0,91049.0,0.01878069]
[1767827402758,0.010991,91061.0,91047.0,0.010992]
[1767827403363,0.010991,91064.0,91047.0,0.010992]
[1767827403561,0.0225677,91064.0,91047.0,0.010992]
[1767827403762,0.0998836,91065.0,91054.0,0.010992]
[1767827403960,0.01099,91066.0,91051.0,0.010992]
[1767827404155,0.0934,91065.0,91051.0,0.010992]
[1767827404761,0.0934,91065.0,91046.0,0.09471359]
[1767827404762,0.010991,91063.0,91048.0,0.010992]
[1767827404962,0.12226577,91062.0,91047.0,0.010992]
[1767827405354,0.11127477,91062.0,91041.0,0.010993]
[1767827405660,0.0934,91065.0,91052.0,0.010992]
[1767827406269,0.01099,91064.0,91044.0,0.01878069]
[1767827406565,0.0228942,91064.0,91044.0,0.01878069]
[1767827408364,0.01214771,91062.0,91043.0,0.09471359]
[1767827408970,0.0998836,91063.0,91045.0,0.010993]
[1767827409168,0.0934,91065.0,91054.0,0.010992]
[1767827409360,0.0934,91065.0,91051.0,0.010992]
[1767827409960,0.01185388,91060.0,91041.0,0.01878069]
[1767827410161,0.01185388,91060.0,91037.0,0.09471359]
[1767827410162,0.010991,91058.0,91043.0,0.010993]
[1767827410365,0.12272848,91058.0,91043.0,0.010993]
[1767827410569,0.01185388,91057.0,91043.0,0.010993]
[1767827410762,0.0998836,91058.0,91048.0,0.010992]
[1767827411072,0.01185388,91062.0,91048.0,0.010992]
[1767827411671,0.0934,91065.0,91054.0,0.010992]
[1767827411866,0.0934,91065.0,91056.0,0.010991]
[1767827412065,0.0934,91065.0,91054.0,0.010992]
[1767827412270,0.0934,91065.0,91052.0,0.010992]
[1767827412468,0.0934,91065.0,91047.0,0.01878069]
[1767827412469,0.0934,91065.0,91054.0,0.010992]
[1767827412664,0.9243636,91069.0,91055.0,0.010991]
[1767827412665,1.04252,91064.0,91055.0,0.010991]
[1767827413061,0.0998836,91085.0,91057.0,0.01878069]
[1767827413262,0.2158,91084.0,91065.0,0.01099]
[1767827413463,0.22768701,91084.0,91062.0,0.02977169]
[1767827413774,0.11177061,91082.0,91062.0,0.010991]
[1767827414274,0.01169588,91081.0,91062.0,0.010991]
[1767827414974,0.01169588,91081.0,91067.0,0.01099]
[1767827415272,0.0998836,91082.0,91061.0,0.09471359]
[1767827415273,0.0998836,91082.0,91064.0,0.01099]
[1767827415862,0.01154657,91085.0,91064.0,0.11349428]
[1767827416062,0.0998836,91088.0,91069.0,0.01878069]
[1767827416372,0.197,91086.0,91073.0,0.010989]
[1767827416574,0.30824018,91086.0,91073.0,0.010989]
[1767827417265,0.30824018,91086.0,91065.0,0.01878069]
[1767827418171,0.30824018,91086.0,91070.0,0.01099]
[1767827418679,0.1110299,91082.0,91062.0,0.09471359]
[1767827418973,0.010989,91078.0,91061.0,0.010991]
[1767827419173,0.09344,91077.0,91061.0,0.010991]
[1767827420582,0.09344,91077.0,91060.0,0.010991]
[1767827420783,0.09344,91077.0,91062.0,0.010991]
[1767827421272,0.09344,91077.0,91059.0,0.010991]
[1767827421473,0.09344,91077.0,91057.0,0.01878069]
[1767827422283,0.09344,91077.0,91066.0,0.01099]
[1767827423483,0.09344,91077.0,91067.0,0.01099]
[1767827424072,0.09344,91077.0,91072.0,0.010989]
[1767827424476,0.0998836,91085.0,91066.0,0.01878069]
[1767827424675,0.0934,91084.0,91066.0,0.01878069]
[1767827425082,0.0934,91083.0,91066.0,0.01878069]
[1767827425786,0.0934,91083.0,91076.0,0.010989]
[1767827426285,0.0934,91083.0,91074.0,0.010989]
[1767827426982,0.0998836,91085.0,91074.0,0.010989]
[1767827427286,0.0934,91082.0,91072.0,0.010989]
[1767827427781,0.0934,91082.0,91074.0,0.010989]
[1767827427977,0.0934,91081.0,91076.0,0.010989]
[1767827428178,0.0934,91080.0,91076.0,0.010989]
[1767827428686,0.0934,91080.0,91067.0,0.10570359]
[1767827429186,0.0934,91080.0,91075.0,0.010989]
[1767827430689,0.0934,91080.0,91076.0,0.010989]
[1767827431386,0.0934,91080.0,91067.0,0.10570359]
[1767827432490,0.00890347,91091.0,91081.0,0.010988]
[1767827432680,0.0934,91090.0,91082.0,0.010988]
[1767827432987,0.0934,91090.0,91080.0,0.010989]
[1767827433582,0.0934,91090.0,91074.0,0.01797809]
[1767827433776,0.0934,91090.0,91079.0,0.010989]
[1767827433990,0.0934,91090.0,91074.0,0.01797809]
[1767827435184,0.0934,91090.0,91080.0,0.010988]
[1767827437088,0.0934,91090.0,91083.0,0.010988]
[1767827437289,0.0934,91089.0,91084.0,0.010988]
[1767827438079,0.0934,91089.0,91081.0,0.010988]
[1767827438292,0.0934,91089.0,91082.0,0.010988]
[1767827438588,0.0934,91089.0,91075.0,0.010989]
[1767827439485,0.0934,91089.0,91081.0,0.010988]
[1767827440892,0.0934,91089.0,91082.0,0.010988]
[1767827442591,0.0934,91089.0,91077.0,0.01797809]
[1767827442789,0.0934,91089.0,91082.0,0.010988]
[1767827443091,0.0934,91089.0,91080.0,0.010989]
[1767827443279,0.10329878,91089.0,91077.0,0.010989]
[1767827443485,0.11428678,91089.0,91070.0,0.09229155]
[1767827443693,0.02088678,91087.0,91067.0,0.01797809]
[1767827443995,0.02088678,91087.0,91075.0,0.010989]
[1767827444293,0.00989878,91087.0,91075.0,0.010989]
[1767827445691,0.00989878,91087.0,91067.0,0.01797809]
[1767827445692,0.00989878,91087.0,91068.0,0.01797809]
[1767827445892,0.00955215,91081.0,91066.0,0.12]
[1767827446289,0.09329665,91082.0,91073.0,0.010989]
[1767827446491,0.09329665,91082.0,91066.0,0.12]
[1767827446696,0.09329665,91088.0,91067.0,0.01099]
[1767827446993,0.09329665,91088.0,91066.0,0.12]
[1767827446994,0.09329665,91088.0,91070.0,0.1517128]
[1767827447193,0.0934,91089.0,91073.0,0.11026964]
[1767827447394,0.0934,91089.0,91074.0,0.01797809]
[1767827447895,0.0934,91089.0,91081.0,0.010988]
[1767827448199,0.0934,91089.0,91079.0,0.010989]
[1767827448592,0.0934,91089.0,91066.0,0.12]
[1767827448593,0.09329665,91082.0,91066.0,0.12]
[1767827448790,0.09329665,91079.0,91066.0,0.12]
[1767827448991,0.09329665,91079.0,91060.0,0.13373471]
[1767827449199,0.09329665,91088.0,91076.0,0.010989]
[1767827449798,0.09329665,91088.0,91077.0,0.010989]
[1767827450103,0.09329665,91088.0,91078.0,0.010989]
[1767827450405,0.09329665,91088.0,91079.0,0.010989]
[1767827450903,0.09329665,91088.0,91077.0,0.010989]
[1767827451105,0.09329665,91088.0,91079.0,0.010989]
[1767827451793,0.0934,91087.0,91082.0,0.010988]
[1767827451994,0.09329665,91095.0,91082.0,0.010988]
[1767827452196,0.49329665,91094.0,91084.0,0.010988]
[1767827452509,0.0934,91093.0,91081.0,0.010988]
[1767827452989,0.0934,91093.0,91082.0,0.010988]
[1767827453390,0.0934,91093.0,91074.0,0.010989]
[1767827453801,0.09329665,91090.0,91070.0,0.01797809]
[1767827454006,0.09329665,91079.0,91051.0,0.010992]
[1767827454202,0.09329665,91076.0,91051.0,0.010992]
[1767827454500,0.09329665,91076.0,91053.0,0.01797809]
[1767827455007,0.09329665,91076.0,91056.0,0.12]
[1767827456103,0.13373471,91070.0,91056.0,0.12]
[1767827456404,0.09329665,91076.0,91056.0,0.12]
[1767827456606,0.09329665,91074.0,91061.0,0.010991]
[1767827456808,0.10428565,91074.0,91061.0,0.010991]
[1767827457809,0.09329665,91074.0,91056.0,0.12]
[1767827459310,0.09329665,91074.0,91061.0,0.010991]
[1767827460210,0.09329665,91108.0,91083.0,0.01797809]
[1767827460403,0.010984,91118.0,91079.0,0.01797809]
[1767827460404,0.13373471,91100.0,91079.0,0.01797809]
[1767827460604,0.22703136,91100.0,91089.0,0.010987]
[1767827460805,0.0934,91103.0,91100.0,0.010986]
[1767827461005,0.0934,91102.0,91098.0,0.010986]
[1767827461206,0.0934,91102.0,91085.0,0.09229155]
[1767827461409,0.0934,91102.0,91093.0,0.010987]
[1767827461603,0.0934,91102.0,91095.0,0.010987]
[1767827462817,0.0934,91102.0,91097.0,0.010986]
[1767827463317,0.0934,91102.0,91091.0,0.010987]
[1767827463523,0.0919263,91136.0,91109.0,0.11385849]
[1767827463813,0.0919263,91134.0,91114.0,0.010984]
[1767827464009,0.13373471,91130.0,91114.0,0.010984]
[1767827464209,0.22566101,91130.0,91114.0,0.010984]
[1767827464417,0.22566101,91130.0,91100.0,0.13373471]
[1767827464418,0.0919263,91129.0,91113.0,0.010984]
[1767827465611,0.0023726,91126.0,91109.0,0.010985]
[1767827465813,0.0023726,91124.0,91112.0,0.010985]
[1767827466207,0.0023726,91124.0,91102.0,0.0950076]
[1767827466518,0.00217914,91123.0,91111.0,0.010985]
[1767827467409,0.0919263,91130.0,91120.0,0.010984]
[1767827467609,0.0934,91129.0,91120.0,0.010984]
[1767827467809,0.0919263,91130.0,91120.0,0.010984]
[1767827468018,0.0934,91128.0,91120.0,0.010984]
[1767827469115,0.4,91129.0,91120.0,0.010984]
[1767827469308,0.0934,91128.0,91120.0,0.010984]
[1767827470215,0.0934,91128.0,91117.0,0.010984]
[1767827471022,0.0934,91127.0,91117.0,0.010984]
[1767827471222,0.00398895,91131.0,91117.0,0.010984]
[1767827471423,0.94884,91127.0,91117.0,0.010984]
[1767827472020,0.94884,91127.0,91119.0,0.010984]
[1767827472410,0.00398895,91131.0,91120.0,0.010984]
[1767827472608,0.3354,91130.0,91120.0,0.010984]
[1767827472825,0.00398895,91131.0,91120.0,0.010984]
[1767827473028,0.40398895,91131.0,91120.0,0.010984]
[1767827473525,0.7314,91130.0,91120.0,0.010984]
[1767827473715,1.04224,91129.0,91120.0,0.010984]
[1767827473913,0.9488,91128.0,91120.0,0.010984]
[1767827474117,0.9488,91128.0,91111.0,0.0950076]
[1767827474118,0.0934,91127.0,91111.0,0.0950076]
[1767827474316,0.09623178,91127.0,91111.0,0.0950076]
[1767827474718,0.00283178,91126.0,91111.0,0.010985]
[1767827475426,0.00236616,91122.0,91108.0,0.010985]
[1767827475620,0.00236616,91117.0,91106.0,0.010985]
[1767827475921,0.00236616,91115.0,91096.0,0.0950076]
[1767827476224,0.09409902,91107.0,91095.0,0.010987]
[1767827476522,0.00217272,91105.0,91099.0,0.010986]
[1767827476826,0.83884,91106.0,91099.0,0.010986]
[1767827478522,0.83884,91106.0,91090.0,0.0950076]
[1767827478729,0.095953,91108.0,91106.0,0.010985]
[1767827478918,0.00157583,91118.0,91106.0,0.010985]
[1767827479120,0.29376,91117.0,91106.0,0.010985]
[1767827479928,0.010983,91128.0,91112.0,0.010985]
[1767827480228,0.3372,91127.0,91110.0,0.0950076]
[1767827481021,0.35685181,91127.0,91110.0,0.0950076]
[1767827481220,0.35685181,91127.0,91113.0,0.010985]
[1767827481628,0.35685181,91127.0,91115.0,0.010984]
[1767827482329,0.35685181,91127.0,91116.0,0.010984]
[1767827482630,0.01965181,91127.0,91114.0,0.010984]
[1767827482830,0.09336,91126.0,91114.0,0.010984]
[1767827483030,0.01965181,91127.0,91115.0,0.010984]
[1767827483329,0.09336,91126.0,91115.0,0.010984]
[1767827484427,0.01965181,91127.0,91110.0,0.0950076]
[1767827484725,0.09336,91125.0,91120.0,0.010984]
[1767827484933,0.09336,91124.0,91120.0,0.010984]
[1767827485226,0.72781181,91132.0,91120.0,0.010984]
[1767827485227,0.09336,91123.0,91120.0,0.010984]
[1767827485426,0.09336,91122.0,91120.0,0.010984]
[1767827485734,0.09336,91122.0,91118.0,0.010984]
[1767827487522,0.97939381,91132.0,91118.0,0.010984]
[1767827487523,0.01965181,91131.0,91118.0,0.010984]
[1767827487724,0.09336,91130.0,91118.0,0.010984]
[1767827488130,0.09336,91130.0,91111.0,0.11385849]
[1767827488131,0.010983,91129.0,91116.0,0.010984]
[1767827488330,0.03063481,91129.0,91116.0,0.010984]
[1767827488726,0.01965181,91129.0,91118.0,0.010984]
[1767827489425,0.09336,91128.0,91123.0,0.010983]
[1767827489626,0.09336,91127.0,91117.0,0.0950076]
[1767827489826,0.09336,91126.0,91118.0,0.010984]
[1767827490135,0.09336,91127.0,91119.0,0.010984]
[1767827490634,0.09336,91127.0,91121.0,0.010984]
[1767827491438,0.01965181,91134.0,91117.0,0.22860906]
[1767827491639,0.09336,91133.0,91124.0,0.010983]
[1767827492231,0.010982,91138.0,91124.0,0.010983]
[1767827492433,0.09336,91137.0,91124.0,0.010983]
[1767827492832,0.09336,91136.0,91126.0,0.010983]
[1767827493536,0.10510176,91139.0,91126.0,0.010983]
[1767827493841,0.09336,91144.0,91128.0,0.09092152]
[1767827494027,0.70810895,91150.0,91128.0,0.09092152]
[1767827494232,0.09336,91143.0,91128.0,0.09092152]
[1767827494431,0.010981,91144.0,91130.0,0.010982]
[1767827494642,0.13360146,91140.0,91122.0,0.09092152]
[1767827494940,0.09090749,91138.0,91120.0,0.010984]
[1767827495133,0.09090749,91138.0,91116.0,0.010984]
[1767827495328,0.09336,91139.0,91126.0,0.010983]
[1767827495532,0.010981,91141.0,91127.0,0.010983]
[1767827495839,0.09336,91140.0,91127.0,0.010983]
[1767827496240,0.010981,91139.0,91124.0,0.010983]
[1767827496542,0.09336,91140.0,91124.0,0.010983]
[1767827497535,0.09336,91140.0,91126.0,0.010983]
[1767827498845,0.22696146,91140.0,91126.0,0.010983]
[1767827499249,0.22696146,91140.0,91124.0,0.010983]
[1767827499638,0.22696146,91140.0,91126.0,0.010983]
[1767827500235,0.22696146,91140.0,91129.0,0.010983]
[1767827500437,0.09090749,91144.0,91129.0,0.010983]
[1767827500632,0.09336,91143.0,91129.0,0.010983]
[1767827500832,0.010981,91142.0,91120.0,0.09092152]
[1767827501141,0.09336,91141.0,91120.0,0.09092152]
[1767827501444,0.09090749,91136.0,91119.0,0.010984]
[1767827501643,0.010982,91133.0,91116.0,0.010984]
[1767827502036,0.10188949,91133.0,91116.0,0.010984]
[1767827502236,0.13360146,91130.0,91116.0,0.010984]
[1767827502537,0.09090749,91133.0,91119.0,0.010984]
[1767827504245,0.02374416,91132.0,91119.0,0.010984]
[1767827504747,0.02374416,91132.0,91120.0,0.010984]
[1767827505332,0.02346012,91138.0,91123.0,0.010983]
[1767827505846,0.02346012,91136.0,91123.0,0.010983]
[1767827507438,0.02346012,91136.0,91125.0,0.010983]
[1767827507638,0.11379682,91139.0,91127.0,0.010983]
[1767827507845,0.02288933,91139.0,91127.0,0.010983]
[1767827509050,0.010981,91142.0,91128.0,0.010983]
[1767827509245,0.02221905,91141.0,91128.0,0.010983]
[1767827509451,0.02221905,91139.0,91125.0,0.010983]
[1767827509654,0.09336,91138.0,91125.0,0.010983]
[1767827509952,0.02221905,91139.0,91125.0,0.010983]
[1767827510144,0.010981,91140.0,91125.0,0.010983]
[1767827510145,0.11525419,91138.0,91125.0,0.010983]
[1767827510842,0.02189419,91138.0,91125.0,0.010983]
[1767827511043,0.09336,91137.0,91121.0,0.09092152]
[1767827511245,0.11506068,91137.0,91121.0,0.09092152]
[1767827511446,0.02170068,91136.0,91123.0,0.010983]
[1767827511642,0.02170068,91133.0,91119.0,0.010984]
[1767827511844,0.02170068,91133.0,91117.0,0.010984]
[1767827511845,0.02170068,91130.0,91117.0,0.010984]
[1767827512850,0.02137754,91128.0,91110.0,0.09092152]
[1767827513148,0.010981,91140.0,91109.0,0.00219518]
[1767827513149,0.09336,91133.0,91121.0,0.09092152]
[1767827513348,0.09336,91144.0,91129.0,0.09092152]
[1767827513546,0.09336,91143.0,91130.0,0.09092152]
[1767827513740,0.09336,91142.0,91130.0,0.09092152]
[1767827513945,0.09336,91142.0,91132.0,0.010982]
[1767827514146,0.09336,91142.0,91130.0,0.09092152]
[1767827514850,0.01098,91153.0,91130.0,0.09092152]
[1767827515042,0.04634733,91151.0,91130.0,0.09092152]
[1767827515246,0.01380968,91145.0,91130.0,0.09092152]
[1767827516655,0.42416,91155.0,91130.0,0.09092152]
[1767827516656,0.06830833,91192.0,91163.0,0.03599002]
[1767827516858,0.010975,91190.0,91167.0,0.09092152]
[1767827517053,0.06830833,91192.0,91168.0,0.09092152]
[1767827517254,0.06830833,91192.0,91173.0,0.010977]
[1767827517453,0.09336,91193.0,91173.0,0.010977]
[1767827517654,0.0688502,91198.0,91171.0,0.09092152]
[1767827517854,0.1622102,91197.0,91171.0,0.09092152]
[1767827518044,0.09336,91196.0,91171.0,0.09092152]
[1767827518249,0.010975,91194.0,91174.0,0.010977]
[1767827518449,0.010975,91192.0,91171.0,0.09092152]
[1767827518857,0.09336,91191.0,91171.0,0.09092152]
[1767827519950,0.09336,91191.0,91172.0,0.10189852]
[1767827520145,0.010971,91227.0,91204.0,0.12691154]
[1767827520454,0.08250501,91234.0,91208.0,0.09092152]
[1767827520455,0.01305348,91233.0,91208.0,0.09092152]
[1767827520645,0.08458849,91230.0,91208.0,0.09092152]
[1767827520956,0.08458849,91230.0,91205.0,0.09336]
[1767827520957,0.00208348,91226.0,91205.0,0.09336]
[1767827521257,0.00208348,91235.0,91181.0,0.03599002]
[1767827521258,0.0869363,91218.0,91181.0,0.03599002]
[1767827521458,0.00272041,91216.0,91195.0,0.010975]
[1767827521658,0.010971,91223.0,91198.0,0.010974]
[1767827521856,0.010971,91223.0,91199.0,0.09332]
[1767827522054,0.010972,91220.0,91199.0,0.09332]
[1767827522356,0.010972,91217.0,91190.0,0.010975]
[1767827522553,0.00324111,91216.0,91191.0,0.09332]
[1767827522858,0.00324111,91211.0,91192.0,0.09332]
[1767827523545,0.010973,91210.0,91190.0,0.09938048]
[1767827523751,0.01222602,91230.0,91208.0,0.09938048]
[1767827524245,0.09554076,91230.0,91200.0,0.03742631]
[1767827524452,0.09554076,91207.0,91187.0,0.010976]
[1767827524853,0.09554076,91207.0,91185.0,0.09332]
[1767827525559,0.010973,91206.0,91185.0,0.19270048]
[1767827526161,0.01287145,91202.0,91186.0,0.09332]
[1767827526763,0.010974,91197.0,91179.0,0.09332]
[1767827526959,0.00189745,91200.0,91179.0,0.09332]
[1767827527262,0.010974,91199.0,91179.0,0.09332]
[1767827528353,0.010975,91196.0,91179.0,0.09332]
[1767827529161,0.00238184,91196.0,91171.0,0.09938048]
[1767827529359,0.010975,91191.0,91172.0,0.09332]
[1767827529558,0.010975,91191.0,91172.0,0.19270048]
[1767827529866,0.010975,91189.0,91171.0,0.09332]
[1767827530163,0.010975,91191.0,91169.0,0.09332]
[1767827530361,0.010976,91187.0,91169.0,0.19270048]
[1767827531857,0.010976,91187.0,91170.0,0.09938048]
[1767827532158,0.010976,91185.0,91170.0,0.09938048]
[1767827532358,0.00238184,91192.0,91170.0,0.09938048]
[1767827533257,0.010976,91188.0,91170.0,0.09938048]
[1767827534452,0.010976,91188.0,91170.0,0.13680679]
[1767827534768,0.010975,91191.0,91173.0,0.09938048]
[1767827534964,0.010975,91189.0,91173.0,0.09938048]
[1767827538164,0.010976,91187.0,91173.0,0.09938048]
[1767827540267,0.010976,91187.0,91173.0,0.13680679]
[1767827540658,0.010976,91187.0,91174.0,0.09938048]
[1767827540858,0.09332,91193.0,91174.0,0.09938048]
[1767827541256,0.010976,91184.0,91174.0,0.09938048]
[1767827541661,0.009476,91184.0,91174.0,0.09938048]
[1767827542070,0.010976,91187.0,91174.0,0.09938048]
[1767827542277,0.09332,91193.0,91174.0,0.09938048]
[1767827542475,0.01079787,91215.0,91189.0,0.13680679]
[1767827542667,0.010974,91197.0,91184.0,0.09938048]
[1767827542862,0.010974,91197.0,91179.0,0.09332]
[1767827543062,0.010974,91197.0,91180.0,0.010976]
[1767827543262,0.010974,91197.0,91180.0,0.09938048]
[1767827543463,0.010975,91195.0,91180.0,0.09938048]
[1767827543672,0.010974,91198.0,91180.0,0.09938048]
[1767827543875,0.01079787,91201.0,91180.0,0.09938048]
[1767827544070,0.010974,91199.0,91180.0,0.11035648]
[1767827544377,0.010974,91199.0,91181.0,0.09938048]
[1767827545067,0.010974,91199.0,91182.0,0.09938048]
[1767827545378,0.010974,91199.0,91182.0,0.11035648]
[1767827546866,0.10442458,91186.0,91167.0,0.09332]
[1767827547177,0.010975,91190.0,91170.0,0.09938048]
[1767827547372,0.010976,91188.0,91170.0,0.09938048]
[1767827547866,0.010976,91188.0,91171.0,0.09938048]
[1767827548263,0.010976,91184.0,91171.0,0.09938048]
[1767827548861,0.09332,91193.0,91174.0,0.09938048]
[1767827549067,0.09332,91193.0,91178.0,0.13680679]
[1767827549268,0.09332,91193.0,91179.0,0.09938048]
[1767827549566,0.010975,91192.0,91179.0,0.09938048]
[1767827549773,0.010975,91190.0,91179.0,0.09938048]
[1767827550763,0.09332,91193.0,91179.0,0.09938048]
[1767827550970,0.010976,91188.0,91179.0,0.09938048]
[1767827553067,0.010976,91187.0,91179.0,0.09938048]
[1767827553267,0.09332,91193.0,91173.0,0.03742631]
[1767827554175,0.010976,91187.0,91173.0,0.03742631]
[1767827554376,0.010976,91185.0,91167.0,0.03156076]
[1767827554676,0.010976,91183.0,91167.0,0.03156076]
[1767827554872,0.010975,91192.0,91173.0,0.03156076]
[1767827555272,0.010975,91192.0,91179.0,0.12374475]
[1767827556272,0.104295,91193.0,91180.0,0.12374475]
[1767827557877,0.09332,91192.0,91180.0,0.12374475]
[1767827558974,0.010975,91191.0,91180.0,0.12374475]
[1767827559175,0.09332,91192.0,91176.0,0.03156076]
[1767827559370,0.010976,91186.0,91176.0,0.03156076]
[1767827559577,0.010976,91186.0,91174.0,0.12374475]
[1767827564282,0.010976,91186.0,91175.0,0.03156076]
[1767827565480,0.010976,91188.0,91177.0,0.09218399]
[1767827565671,0.010976,91188.0,91178.0,0.03156076]
[1767827565874,0.010975,91191.0,91178.0,0.03156076]
[1767827568476,0.010975,91191.0,91179.0,0.03156076]
[1767827569775,0.09332,91192.0,91179.0,0.03156076]
[1767827571186,0.010975,91189.0,91179.0,0.03156076]
[1767827572678,0.09332,91192.0,91179.0,0.03156076]
[1767827575291,0.010975,91191.0,91179.0,0.03156076]
[1767827577389,0.09332,91192.0,91184.0,0.03156076]
[1767827577891,0.09332,91191.0,91185.0,0.03156076]
[1767827578083,0.06019477,91191.0,91186.0,0.09218399]
[1767827578486,0.06019477,91191.0,91178.0,0.010977]
[1767827578487,0.06019477,91191.0,91181.0,0.03156076]
[1767827579588,0.19363422,91191.0,91181.0,0.03156076]
[1767827582992,0.010974,91200.0,91186.0,0.03142162]
[1767827583295,0.13343945,91200.0,91190.0,0.03142162]
[1767827583997,0.13343945,91200.0,91189.0,0.09435254]
[1767827584393,0.13343945,91200.0,91187.0,0.03142162]
[1767827584590,0.03114057,91188.0,91168.0,0.09435254]
[1767827584790,0.13343945,91180.0,91168.0,0.09435254]
[1767827585098,0.13343945,91180.0,91169.0,0.03142162]
[1767827585592,0.13343945,91190.0,91176.0,0.010977]
[1767827585793,0.13343945,91190.0,91175.0,0.03142162]
[1767827586697,0.09332,91191.0,91177.0,0.03142162]
[1767827586900,0.13343945,91190.0,91178.0,0.03142162]
[1767827588090,0.22675945,91190.0,91178.0,0.03142162]
[1767827588291,0.13343945,91190.0,91178.0,0.03142162]
[1767827589096,0.03114057,91203.0,91184.0,0.03142162]
[1767827589403,0.03114057,91203.0,91172.0,0.010977]
[1767827589404,0.09332,91202.0,91187.0,0.03142162]
[1767827589698,0.13343945,91200.0,91187.0,0.03142162]
[1767827592002,0.13343945,91200.0,91186.0,0.09435254]